fUST/lending_fUST_20260327
["ID","MTS","AMOUNT","RATE_DAILY","PERIOD"]
[418921770,1774553441365,-500.0,8.259e-05,2]
[418921771,1774553441375,-500.0,8.259e-05,2]
[418921772,1774553441384,-500.0,8.259e-05,2]
[418921773,1774553441394,-500.0,8.259e-05,2]
[418921774,1774553441403,-264.94195659,8.259e-05,2]
[418921775,1774553441412,-500.0,8.259e-05,2]
[418921776,1774553441424,-500.0,8.259e-05,2]
[418921777,1774553441433,-500.0,8.259e-05,2]
[418921778,1774553441442,-500.0,8.259e-05,2]
[418921779,1774553441452,-500.0,8.259e-05,2]
[418921780,1774553441462,-500.0,8.259e-05,2]
[418921781,1774553441472,-500.0,8.259e-05,2]
[418921782,1774553441481,-500.0,8.259e-05,2]
[418921783,1774553441490,-500.0,8.259e-05,2]
[418921784,1774553441500,-500.0,8.259e-05,2]
[418921785,1774553441509,-500.0,8.259e-05,2]
[418921786,1774553441519,-500.0,8.259e-05,2]
[418921787,1774553441528,-273.74895912,8.259e-05,2]
[418921788,1774553441540,-226.25104088,8.259e-05,2]
[418921789,1774553441549,-500.0,8.259e-05,2]
[418921790,1774553441559,-126.80286299,8.259e-05,2]
[418921791,1774553441570,-371.19603514,8.259e-05,2]
[418921798,1774553443707,-2.00110187,8.259e-05,2]
[418921799,1774553443717,-500.0,8.259e-05,2]
[418921800,1774553443726,-500.0,8.259e-05,2]
[418921801,1774553443736,-500.0,8.259e-05,2]
[418921802,1774553443745,-500.0,8.259e-05,2]
[418921803,1774553443754,-500.0,8.259e-05,2]
[418921804,1774553443764,-500.0,8.259e-05,2]
[418921805,1774553443773,-500.0,8.259e-05,2]
[418921806,1774553443783,-500.0,8.259e-05,2]
[418921807,1774553443792,-500.0,8.259e-05,2]
[418921808,1774553443803,-500.0,8.259e-05,2]
[418921809,1774553443812,-500.0,8.259e-05,2]
[418921810,1774553443821,-500.0,8.259e-05,2]
[418921811,1774553443831,-500.0,8.259e-05,2]
[418921812,1774553443840,-402.53281897,8.259e-05,2]
[418921813,1774553443850,-500.0,8.259e-05,2]
[418921814,1774553443859,-500.0,8.259e-05,2]
[418921815,1774553443869,-500.0,8.259e-05,2]
[418921816,1774553443879,-500.0,8.259e-05,2]
[418921817,1774553443889,-500.0,8.259e-05,2]
[418921818,1774553443898,-500.0,8.259e-05,2]
[418921819,1774553443908,-500.0,8.259e-05,2]
[418921820,1774553443917,-500.0,8.259e-05,2]
[418921821,1774553443926,-500.0,8.262e-05,2]
[418921822,1774553443936,-161.939414,8.263e-05,2]
[418921823,1774553443946,-161.939414,8.263e-05,2]
[418921824,1774553443956,-161.939414,8.263e-05,2]
[418921825,1774553443965,-161.939414,8.263e-05,2]
[418921826,1774553443974,-5000.0,8.263e-05,2]
[418921827,1774553443984,-3396.14741616,8.263e-05,2]
[418921828,1774553443995,-3884.64735648,8.263e-05,2]
[418921829,1774553444007,-6873.16383452,8.263e-05,2]
[418921834,1774553444067,-1277.19886918,8.263e-05,2]
[418921835,1774553444082,-4614.4999995,8.263e-05,2]
[418921848,1774553446515,-21427.4128275,8.263e-05,2]
[418921850,1774553446801,-3826.91594156,8.263e-05,2]
[418921851,1774553446843,-1079.24108649,8.263e-05,2]
[418921852,1774553446854,-3514.36875125,8.263e-05,2]
[418921853,1774553497380,179.72,2.012e-05,2]
[418921855,1774553860614,466.1,2e-05,120]
[418921865,1774554632834,-505.0,5.946e-05,2]
[418921866,1774554632845,-600.0,6.057e-05,2]
[418921867,1774554632854,-1200.0,6.078e-05,2]
[418921868,1774554632866,-500.0,6.108e-05,2]
[418921869,1774554632880,-500.0,6.116e-05,2]
[418921870,1774554632902,-663.0,6.239e-05,2]
[418921871,1774554632917,-1481.37240719,6.24e-05,2]
[418921872,1774554632930,-1793.30073341,6.24e-05,2]
[418921873,1774554633010,-295.30926659,6.24e-05,2]
[418921874,1774554633022,-300.58662455,6.24e-05,2]
[418921875,1774554633034,-518.07829496,6.24e-05,2]
[418921905,1774554638749,-435.42165357,6.24e-05,2]
[418921928,1774554641411,-1075.08886253,6.24e-05,2]
[418921978,1774554644044,-5363.4509141,6.24e-05,2]
[418921979,1774554644054,-1200.0,6.254e-05,2]
[418921980,1774554644063,-592.186306,6.815e-05,2]
[418921981,1774554644073,-600.0,6.855e-05,2]
[418921982,1774554644082,-1200.0,7.014e-05,2]
[418921983,1774554644092,-592.186306,7.102e-05,2]
[418921984,1774554644101,-1200.0,7.128e-05,2]
[418921985,1774554644111,-500.0,7.355e-05,2]
[418921986,1774554644121,-592.186306,7.389e-05,2]
[418921987,1774554644131,-275.90025888,7.455e-05,2]
[418921988,1774554644143,-924.09974112,7.455e-05,2]
[418921989,1774554644153,-452.51025888,7.482e-05,2]
[418921998,1774554646792,-747.48974112,7.482e-05,2]
[418921999,1774554646810,-600.0,7.552e-05,2]
[418922000,1774554646827,-1200.0,7.635e-05,2]
[418922001,1774554646839,-600.0,7.676e-05,2]
[418922002,1774554646854,-43.2611186,7.676e-05,2]
[418922003,1774554647000,-548.9251874,7.676e-05,2]
[418922004,1774554647013,-500.0,7.898e-05,2]
[418922005,1774554647027,-212.04776337,7.898e-05,2]
[418922006,1774554647040,-500.0,7.898e-05,2]
[418922007,1774554647054,-500.0,7.898e-05,2]
[418922008,1774554647067,-500.0,7.898e-05,2]
[418922009,1774554647080,-500.0,7.898e-05,2]
[418922010,1774554647094,-500.0,7.898e-05,2]
[418922011,1774554647108,-500.0,7.898e-05,2]
[418922012,1774554647122,-500.0,7.898e-05,2]
[418922013,1774554647136,-500.0,7.898e-05,2]
[418922014,1774554647150,-500.0,7.898e-05,2]
[418922015,1774554647164,-500.0,7.898e-05,2]
[418922016,1774554647178,-500.0,7.898e-05,2]
[418922017,1774554647192,-500.0,7.898e-05,2]
[418922018,1774554647268,-198.08195397,7.898e-05,2]
[418922019,1774554647280,-500.0,7.898e-05,2]
[418922020,1774554647291,-500.0,7.898e-05,2]
[418922021,1774554647300,-500.0,7.898e-05,2]
[418922022,1774554647309,-500.0,7.898e-05,2]
[418922023,1774554647319,-500.0,7.898e-05,2]
[418922024,1774554647328,-500.0,7.898e-05,2]
[418922025,1774554647338,-500.0,7.898e-05,2]
[418922026,1774554647347,-500.0,7.898e-05,2]
[418922027,1774554647357,-500.0,7.898e-05,2]
[418922028,1774554647366,-500.0,7.898e-05,2]
[418922029,1774554647375,-500.0,7.898e-05,2]
[418922030,1774554647384,-500.0,7.898e-05,2]
[418922031,1774554647393,-500.0,7.898e-05,2]
[418922032,1774554647402,-500.0,7.898e-05,2]
[418922033,1774554647411,-500.0,7.898e-05,2]
[418922034,1774554647420,-500.0,7.898e-05,2]
[418922035,1774554647429,-500.0,7.898e-05,2]
[418922036,1774554647439,-500.0,7.898e-05,2]
[418922037,1774554647448,-500.0,7.898e-05,2]
[418922038,1774554647458,-500.0,7.898e-05,2]
[418922039,1774554647467,-500.0,7.898e-05,2]
[418922040,1774554647479,-500.0,7.898e-05,2]
[418922041,1774554647489,-500.0,7.898e-05,2]
[418922042,1774554647498,-500.0,7.898e-05,2]
[418922043,1774554647508,-500.0,7.898e-05,2]
[418922044,1774554647518,-323.85837265,7.898e-05,2]
[418922045,1774554647528,-500.0,7.898e-05,2]
[418922046,1774554647540,-500.0,7.898e-05,2]
[418922047,1774554647550,-500.0,7.898e-05,2]
[418922048,1774554647561,-500.0,7.898e-05,2]
[418922049,1774554647571,-500.0,7.898e-05,2]
[418922050,1774554647582,-500.0,7.898e-05,2]
[418922051,1774554647591,-500.0,7.898e-05,2]
[418922052,1774554647601,-500.0,7.898e-05,2]
[418922053,1774554647611,-500.0,7.898e-05,2]
[418922054,1774554647620,-500.0,7.898e-05,2]
[418922055,1774554647629,-500.0,7.898e-05,2]
[418922056,1774554647638,-500.0,7.898e-05,2]
[418922057,1774554647647,-382.75664272,7.898e-05,2]
[418922058,1774554647660,-117.24335728,7.898e-05,2]
[418922059,1774554647669,-500.0,7.898e-05,2]
[418922060,1774554647678,-500.0,7.898e-05,2]
[418922061,1774554647687,-500.0,7.898e-05,2]
[418922062,1774554647696,-500.0,7.898e-05,2]
[418922063,1774554647706,-500.0,7.898e-05,2]
[418922064,1774554647715,-500.0,7.898e-05,2]
[418922065,1774554647724,-500.0,7.898e-05,2]
[418922066,1774554647733,-500.0,7.898e-05,2]
[418922067,1774554647743,-500.0,7.898e-05,2]
[418922068,1774554647752,-500.0,7.898e-05,2]
[418922069,1774554647762,-500.0,7.898e-05,2]
[418922070,1774554647772,-500.0,7.898e-05,2]
[418922071,1774554647781,-500.0,7.898e-05,2]
[418922072,1774554647791,-500.0,7.898e-05,2]
[418922073,1774554647800,-500.0,7.898e-05,2]
[418922074,1774554647810,-500.0,7.898e-05,2]
[418922075,1774554647819,-500.0,7.898e-05,2]
[418922076,1774554647830,-500.0,7.898e-05,2]
[418922077,1774554647840,-500.0,7.898e-05,2]
[418922078,1774554647850,-500.0,7.898e-05,2]
[418922079,1774554647860,-500.0,7.898e-05,2]
[418922080,1774554647869,-500.0,7.898e-05,2]
[418922081,1774554647879,-500.0,7.898e-05,2]
[418922082,1774554647890,-500.0,7.898e-05,2]
[418922083,1774554647899,-500.0,7.898e-05,2]
[418922084,1774554647909,-500.0,7.898e-05,2]
[418922085,1774554647919,-500.0,7.898e-05,2]
[418922086,1774554647929,-500.0,7.898e-05,2]
[418922087,1774554647941,-500.0,7.898e-05,2]
[418922088,1774554647950,-500.0,7.898e-05,2]
[418922089,1774554647959,-500.0,7.898e-05,2]
[418922090,1774554647969,-500.0,7.898e-05,2]
[418922091,1774554647978,-539.02018524,7.898e-05,2]
[418922092,1774554647989,-500.0,7.898e-05,2]
[418922093,1774554648000,-500.0,7.898e-05,2]
[418922094,1774554648009,-500.0,7.898e-05,2]
[418922095,1774554648019,-500.0,7.898e-05,2]
[418922096,1774554648029,-101.658016,7.9e-05,2]
[418922097,1774554648041,-258.58443364,7.9e-05,2]
[418922098,1774554648058,-403.66326522,7.9e-05,2]
[418922099,1774554648068,-1846.19567591,7.9e-05,2]
[418922100,1774554648077,-1821.31224214,7.9e-05,2]
[418922101,1774554648086,-243.44763287,7.9e-05,2]
[418922102,1774554648095,-429.1051966,7.9e-05,2]
[418922103,1774554648105,-395.87986184,7.9e-05,2]
[418922104,1774554648114,-448.73750078,7.9e-05,2]
[418922105,1774554648123,-501.57570192,7.933e-05,2]
[418922106,1774554648178,-500.0,7.933e-05,2]
[418922107,1774554648187,-500.0,7.933e-05,2]
[418922108,1774554648196,-500.0,7.933e-05,2]
[418922109,1774554648205,-500.0,7.933e-05,2]
[418922110,1774554648215,-500.0,7.933e-05,2]
[418922111,1774554648224,-603912.91164879,7.957e-05,2]
[418922112,1774554648235,-444997.14653186,7.957e-05,2]
[418922159,1774555831909,-474.97169873,5.922e-05,2]
[418922161,1774555831919,-505.0,5.922e-05,2]
[418922162,1774555831928,-1200.0,5.956e-05,2]
[418922163,1774555831938,-500.0,5.97e-05,2]
[418922165,1774555831948,-600.0,6.005e-05,2]
[418922166,1774555831958,-300.0,6.027e-05,2]
[418922167,1774555831967,-500.0,6.105e-05,2]
[418922168,1774555831978,-1200.0,6.272e-05,2]
[418922169,1774555831988,-500.0,6.376e-05,2]
[418922170,1774555831998,-500.0,6.645e-05,2]
[418922171,1774555832008,-500.0,6.746e-05,2]
[418922172,1774555832017,-1200.0,6.886e-05,2]
[418922173,1774555832027,-500.0,6.887e-05,2]
[418922174,1774555832037,-500.0,6.961e-05,2]
[418922175,1774555832046,-300.0,7.107e-05,2]
[418922176,1774555832056,-1200.0,7.431e-05,2]
[418922177,1774555832066,-1194.65230012,7.449e-05,2]
[418922178,1774555832078,-5.34769988,7.449e-05,2]
[418922179,1774555832088,-662.33576964,7.541e-05,2]
[418922187,1774555837944,-537.66423036,7.541e-05,2]
[418922188,1774555837955,-1200.0,7.57e-05,2]
[418922189,1774555837965,-177.0,7.575e-05,2]
[418922190,1774555837974,-600.0,7.641e-05,2]
[418922191,1774555837986,-500.0,7.67e-05,2]
[418922192,1774555837995,-1200.0,7.721e-05,2]
[418922193,1774555838005,-500.0,7.733e-05,2]
[418922194,1774555838016,-500.0,7.733e-05,2]
[418922195,1774555838026,-500.0,7.733e-05,2]
[418922196,1774555838037,-500.0,7.733e-05,2]
[418922197,1774555838048,-500.0,7.733e-05,2]
[418922198,1774555838059,-410.89799488,7.751e-05,2]
[418922199,1774555838070,-500.0,7.751e-05,2]
[418922200,1774555838080,-500.0,7.751e-05,2]
[418922201,1774555838089,-500.0,7.751e-05,2]
[418922202,1774555838099,-500.0,7.751e-05,2]
[418922203,1774555838110,-500.0,7.751e-05,2]
[418922204,1774555838119,-500.0,7.751e-05,2]
[418922205,1774555838129,-500.0,7.751e-05,2]
[418922206,1774555838138,-500.0,7.751e-05,2]
[418922207,1774555838147,-500.0,7.751e-05,2]
[418922208,1774555838157,-500.0,7.751e-05,2]
[418922209,1774555838167,-500.0,7.751e-05,2]
[418922210,1774555838176,-500.0,7.751e-05,2]
[418922211,1774555838186,-232.38583727,7.751e-05,2]
[418922212,1774555838195,-500.0,7.751e-05,2]
[418922213,1774555838204,-500.0,7.751e-05,2]
[418922214,1774555838214,-500.0,7.751e-05,2]
[418922215,1774555838223,-500.0,7.751e-05,2]
[418922216,1774555838233,-500.0,7.751e-05,2]
[418922217,1774555838243,-500.0,7.751e-05,2]
[418922218,1774555838253,-500.0,7.751e-05,2]
[418922219,1774555838262,-500.0,7.751e-05,2]
[418922220,1774555838271,-500.0,7.751e-05,2]
[418922221,1774555838280,-500.0,7.751e-05,2]
[418922222,1774555838290,-500.0,7.751e-05,2]
[418922223,1774555838300,-500.0,7.751e-05,2]
[418922224,1774555838310,-500.0,7.751e-05,2]
[418922225,1774555838319,-500.0,7.751e-05,2]
[418922226,1774555838329,-500.0,7.751e-05,2]
[418922227,1774555838339,-500.0,7.751e-05,2]
[418922228,1774555838348,-500.0,7.751e-05,2]
[418922229,1774555838358,-500.0,7.751e-05,2]
[418922230,1774555838368,-500.0,7.751e-05,2]
[418922231,1774555838379,-500.0,7.751e-05,2]
[418922232,1774555838389,-500.0,7.751e-05,2]
[418922233,1774555838399,-500.0,7.751e-05,2]
[418922234,1774555838410,-500.0,7.751e-05,2]
[418922235,1774555838420,-500.0,7.751e-05,2]
[418922236,1774555838429,-500.0,7.751e-05,2]
[418922237,1774555838439,-500.0,7.751e-05,2]
[418922238,1774555838448,-500.0,7.751e-05,2]
[418922239,1774555838457,-500.0,7.751e-05,2]
[418922240,1774555838468,-500.0,7.751e-05,2]
[418922241,1774555838480,-500.0,7.751e-05,2]
[418922242,1774555838529,-500.0,7.751e-05,2]
[418922243,1774555838543,-178.20373166,7.751e-05,2]
[418922244,1774555838553,-500.0,7.751e-05,2]
[418922245,1774555838563,-500.0,7.751e-05,2]
[418922246,1774555838573,-500.0,7.751e-05,2]
[418922247,1774555838583,-500.0,7.751e-05,2]
[418922248,1774555838592,-500.0,7.751e-05,2]
[418922249,1774555838602,-500.0,7.751e-05,2]
[418922250,1774555838611,-500.0,7.751e-05,2]
[418922251,1774555838621,-500.0,7.751e-05,2]
[418922252,1774555838631,-500.0,7.751e-05,2]
[418922253,1774555838640,-500.0,7.751e-05,2]
[418922254,1774555838650,-500.0,7.751e-05,2]
[418922255,1774555838660,-500.0,7.751e-05,2]
[418922256,1774555838670,-500.0,7.751e-05,2]
[418922257,1774555838679,-500.0,7.751e-05,2]
[418922258,1774555838689,-190683.20935796,7.755e-05,2]
[418922259,1774555838702,-155934.26659998,7.755e-05,2]
[418922260,1774555838713,-84688.5915584,7.755e-05,2]
[418922261,1774555838735,-2760.57351566,7.755e-05,2]
[418922281,1774555843164,-972.6959992,7.755e-05,2]
[418922282,1774555843176,-1580.71166212,7.755e-05,2]
[418922283,1774555843211,-3845.15198489,7.755e-05,2]
[418922284,1774555843374,-14791.89545363,7.755e-05,2]
[418922285,1774555843385,-19359.82139848,7.755e-05,2]
[418922286,1774555843397,-11938.61911506,7.755e-05,2]
[418922315,1774555846024,-9854.89601984,7.755e-05,2]
[418922316,1774555846079,-42186.65036781,7.755e-05,2]
[418922317,1774555846096,-408238.47581804,7.755e-05,2]
[418922318,1774555846116,-695.1387042,7.755e-05,2]
[418922319,1774555846135,-308969.16887563,7.755e-05,2]
[418922348,1774557031958,-428.45650225,5.527e-05,2]
[418922350,1774557031970,-71.54349775,5.527e-05,2]
[418922351,1774557031980,-252.92780904,5.571e-05,2]
[418922352,1774557032018,-399.90411656,5.571e-05,2]
[418922353,1774557032030,-1000.0,5.6e-05,2]
[418922354,1774557032040,-1574.85856025,5.671e-05,2]
[418922355,1774557032049,-2171.66517295,5.771e-05,2]
[418922356,1774557032059,-168.18515446,5.844e-05,2]
[418922357,1774557032068,-1082.0,5.87e-05,2]
[418922358,1774557032078,-1317.21125267,5.871e-05,2]
[418922359,1774557032089,-1179.67394224,5.871e-05,2]
[418922360,1774557032099,-160.322468,5.925e-05,2]
[418922361,1774557032108,-300.0,5.969e-05,2]
[418922362,1774557032118,-300.0,5.969e-05,2]
[418922364,1774557032127,-2786.02710185,5.971e-05,2]
[418922365,1774557032136,-1000.0,5.978e-05,2]
[418922367,1774557032146,-1708.0104961,6.032e-05,2]
[418922369,1774557032155,-1552.72540895,6.071e-05,2]
[418922371,1774557032167,-1847.66362189,6.071e-05,2]
[418922373,1774557032175,-600.0,6.162e-05,2]
[418922375,1774557032185,-1000.0,6.217e-05,2]
[418922376,1774557032196,-1000.0,6.253e-05,2]
[418922378,1774557032206,-500.0,6.292e-05,2]
[418922380,1774557032216,-500.0,6.887e-05,2]
[418922382,1774557032226,-600.0,7.396e-05,2]
[418922384,1774557032235,-500.0,7.533e-05,2]
[418922386,1774557032244,-359.895,7.533e-05,2]
[418922388,1774557032254,-500.0,7.551e-05,2]
[418922390,1774557032263,-500.0,7.551e-05,2]
[418922392,1774557032272,-500.0,7.551e-05,2]
[418922393,1774557032281,-500.0,7.551e-05,2]
[418922395,1774557032291,-500.0,7.551e-05,2]
[418922397,1774557032300,-500.0,7.551e-05,2]
[418922399,1774557032311,-597.64891755,7.551e-05,2]
[418922403,1774557032373,-500.0,7.551e-05,2]
[418922404,1774557032383,-500.0,7.551e-05,2]
[418922405,1774557032392,-332.51125149,7.551e-05,2]
[418922458,1774557040721,-167.48874851,7.551e-05,2]
[418922459,1774557040731,-500.0,7.551e-05,2]
[418922460,1774557040741,-33.52860576,7.551e-05,2]
[418922461,1774557040778,-466.47139424,7.551e-05,2]
[418922462,1774557040788,-500.0,7.551e-05,2]
[418922463,1774557040797,-500.0,7.551e-05,2]
[418922464,1774557040807,-500.0,7.551e-05,2]
[418922465,1774557040817,-500.0,7.551e-05,2]
[418922466,1774557040827,-500.0,7.551e-05,2]
[418922467,1774557040836,-500.0,7.551e-05,2]
[418922468,1774557040847,-500.0,7.551e-05,2]
[418922469,1774557040856,-500.0,7.551e-05,2]
[418922470,1774557040866,-500.0,7.551e-05,2]
[418922471,1774557040875,-404.20793183,7.551e-05,2]
[418922472,1774557040885,-500.0,7.551e-05,2]
[418922473,1774557040894,-500.0,7.551e-05,2]
[418922474,1774557040904,-500.0,7.551e-05,2]
[418922475,1774557040913,-500.0,7.551e-05,2]
[418922476,1774557040922,-500.0,7.551e-05,2]
[418922477,1774557040932,-500.0,7.551e-05,2]
[418922478,1774557040942,-500.0,7.551e-05,2]
[418922479,1774557040951,-500.0,7.551e-05,2]
[418922480,1774557040960,-500.0,7.551e-05,2]
[418922481,1774557040970,-500.0,7.551e-05,2]
[418922482,1774557040979,-500.0,7.551e-05,2]
[418922483,1774557040988,-492.22164665,7.551e-05,2]
[418922484,1774557040999,-500.0,7.551e-05,2]
[418922485,1774557041008,-500.0,7.551e-05,2]
[418922486,1774557041028,-500.0,7.551e-05,2]
[418922487,1774557041047,-500.0,7.551e-05,2]
[418922488,1774557041065,-500.0,7.551e-05,2]
[418922489,1774557041086,-500.0,7.551e-05,2]
[418922490,1774557041105,-500.0,7.551e-05,2]
[418922491,1774557041123,-150.05152729,7.551e-05,2]
[418922512,1774557043363,-337.72830889,7.551e-05,2]
[418922513,1774557043381,-12.22016382,7.551e-05,2]
[418922514,1774557043396,-500.0,7.551e-05,2]
[418922515,1774557043409,-500.0,7.551e-05,2]
[418922516,1774557043424,-500.0,7.551e-05,2]
[418922517,1774557043438,-500.0,7.551e-05,2]
[418922518,1774557043452,-500.0,7.551e-05,2]
[418922519,1774557043466,-500.0,7.551e-05,2]
[418922520,1774557043481,-637.8713864,7.551e-05,2]
[418922521,1774557043496,-500.0,7.551e-05,2]
[418922522,1774557043510,-500.0,7.755e-05,2]
[418922523,1774557043524,-330.70223927,7.963e-05,2]
[418922524,1774557043646,-261.48406673,7.963e-05,2]
[418922526,1774557043661,-12657.6686223,8e-05,2]
[418922528,1774557043676,-600.0,8.011e-05,2]
[418922531,1774557043690,-1000.0,8.081e-05,2]
[418922533,1774557043705,-35335.64655288,8.119e-05,2]
[418922543,1774557046246,-5033.82596617,8.119e-05,2]
[418922544,1774557046258,-949.77920166,8.119e-05,2]
[418922545,1774557046269,-74255.75703091,8.119e-05,2]
[418922546,1774557046280,-2727.5040319,8.119e-05,2]
[418922547,1774557046292,-1142.3617184,8.119e-05,2]
[418922548,1774557046398,-23424.47013629,8.119e-05,2]
[418922549,1774557072513,273.74895912,7.551e-05,2]
[418922550,1774557072544,500.00000001,7.551e-05,2]
[418922589,1774558232149,-600.0,5.604e-05,2]
[418922591,1774558232159,-109.050005,5.604e-05,2]
[418922595,1774558232204,-296.92009493,5.604e-05,2]
[418922626,1774558238547,-95.02990007,5.604e-05,2]
[418922627,1774558238560,-600.0,5.714e-05,2]
[418922628,1774558238576,-500.0,5.767e-05,2]
[418922629,1774558238591,-900.0,6.015e-05,2]
[418922631,1774558238607,-600.0,6.114e-05,2]
[418922632,1774558238620,-600.0,6.201e-05,2]
[418922633,1774558238634,-900.0,6.295e-05,2]
[418922634,1774558238647,-300.0,6.503e-05,2]
[418922635,1774558238661,-5534.6239988,6.504e-05,2]
[418922636,1774558238675,-500.0,6.559e-05,2]
[418922637,1774558238690,-900.0,6.773e-05,2]
[418922638,1774558238706,-900.0,6.837e-05,2]
[418922639,1774558238721,-193.0,7.153e-05,2]
[418922640,1774558238737,-197.395435,7.157e-05,2]
[418922641,1774558238752,-900.0,7.599e-05,2]
[418922642,1774558238767,-537.6845,7.728e-05,2]
[418922643,1774558238781,-537.6845,7.728e-05,2]
[418922644,1774558238794,-2150.738,7.728e-05,2]
[418922645,1774558238809,-557.5788265,7.783e-05,2]
[418922646,1774558238827,-900.0,7.799e-05,2]
[418922647,1774558238840,-578.20924308,7.838e-05,2]
[418922648,1774558238854,-160.16165857,7.893e-05,2]
[418922649,1774558238869,-500.0,7.893e-05,2]
[418922650,1774558238883,-500.0,7.893e-05,2]
[418922651,1774558238896,-500.0,7.893e-05,2]
[418922652,1774558238977,-500.0,7.893e-05,2]
[418922653,1774558238987,-500.0,7.893e-05,2]
[418922654,1774558238996,-599.60298507,7.893e-05,2]
[418922655,1774558239006,-197.395435,7.91e-05,2]
[418922656,1774558239015,-500.0,7.918e-05,2]
[418922657,1774558239024,-500.0,7.918e-05,2]
[418922658,1774558239034,-500.0,7.918e-05,2]
[418922659,1774558239043,-648.51032445,7.918e-05,2]
[418922660,1774558239053,-500.0,7.918e-05,2]
[418922661,1774558239062,-318.47665784,7.918e-05,2]
[418922662,1774558239072,-500.0,7.918e-05,2]
[418922663,1774558239081,-276.9135163,7.918e-05,2]
[418922664,1774558239090,-824.49713671,7.919e-05,2]
[418922665,1774558239102,-14817.39222949,7.919e-05,2]
[418922666,1774558239112,-5563.08592835,7.919e-05,2]
[418922711,1774558243569,-1297.21331,7.919e-05,2]
[418922713,1774558243580,-1084.78756458,7.919e-05,2]
[418922714,1774558243628,-437.94669,7.919e-05,2]
[418922715,1774558243789,-744.00654836,7.919e-05,2]
[418922721,1774558246599,-1245.14528569,7.919e-05,2]
[418922722,1774558246656,-4869.30000055,7.919e-05,2]
[418922723,1774558246667,-20540.1976027,7.919e-05,2]
[418922742,1774559432472,-700.0,5.633e-05,2]
[418922743,1774559432483,-501.0,5.633e-05,2]
[418922744,1774559432492,-500.0,5.733e-05,2]
[418922745,1774559432502,-700.0,6.263e-05,2]
[418922746,1774559432512,-500.0,6.293e-05,2]
[418922747,1774559432521,-700.0,6.336e-05,2]
[418922748,1774559432531,-700.0,6.414e-05,2]
[418922749,1774559432540,-500.0,6.424e-05,2]
[418922750,1774559432549,-500.0,6.993e-05,2]
[418922751,1774559432559,-500.0,7.386e-05,2]
[418922752,1774559432568,-500.0,7.419e-05,2]
[418922753,1774559432578,-700.0,7.516e-05,2]
[418922754,1774559432587,-700.0,7.564e-05,2]
[418922755,1774559432597,-500.0,7.568e-05,2]
[418922756,1774559432606,-300.0,7.631e-05,2]
[418922757,1774559432616,-320.839432,7.632e-05,2]
[418922758,1774559432629,-216.845068,7.632e-05,2]
[418922759,1774559432638,-246.64272037,7.632e-05,2]
[418922833,1774559443824,-1074.91166387,7.632e-05,2]
[418922834,1774559444044,-829.18361576,7.632e-05,2]
[418922835,1774559444054,-557.5788265,7.687e-05,2]
[418922836,1774559444064,-500.0,7.693e-05,2]
[418922837,1774559444073,-500.0,7.693e-05,2]
[418922838,1774559444083,-500.0,7.693e-05,2]
[418922839,1774559444092,-500.0,7.693e-05,2]
[418922840,1774559444102,-500.0,7.693e-05,2]
[418922841,1774559444111,-500.0,7.693e-05,2]
[418922842,1774559444120,-175.0038259,7.7e-05,2]
[418922843,1774559444130,-230.05890568,7.7e-05,2]
[418922844,1774559444139,-216.2018073,7.7e-05,2]
[418922845,1774559444148,-225.10797162,7.7e-05,2]
[418922846,1774559444158,-398.951,7.7e-05,2]
[418922847,1774559444167,-537.6845,7.714e-05,2]
[418922848,1774559444177,-578.20924308,7.742e-05,2]
[418922849,1774559444186,-250.34861433,7.79e-05,2]
[418922866,1774559446870,-249.65138567,7.79e-05,2]
[418922867,1774559446882,-384.04689768,7.793e-05,2]
[418922868,1774559446893,-599.60298507,7.797e-05,2]
[418922869,1774559446902,-621.78829552,7.852e-05,2]
[418922870,1774559446911,-644.79446246,7.907e-05,2]
[418922871,1774559446921,-173.38364683,7.923e-05,2]
[418922872,1774559446930,-668.65185757,7.962e-05,2]
[418922873,1774559446939,-693.3919763,8.017e-05,2]
[418922874,1774559446948,-500.0,8.023e-05,2]
[418922875,1774559446957,-719.04747942,8.072e-05,2]
[418922876,1774559446966,-745.65223616,8.127e-05,2]
[418922877,1774559446976,-173.38364682,8.168e-05,2]